Cogmind - Beta 12 @@@ ROGUE MODE // 2023.03.04 @ 23:01:58 Player: Red Box Result: Destroyed by S-10 Pest with Light Assault Rifle Performance ------------- Evolutions (0) 0 Regions Visited (1) 200 Robots Destroyed (18) 90 Value Destroyed (351) 351 Prototype IDs (0) 0 Alien Tech Used (0) 0 Bonus (0) 0 TOTAL SCORE: 641 Bonus ------- None Cogmind --------- Core Integrity 0/250 Matter 287/300 Energy 30/100 System Corruption 0% Temperature Cool (76) Movement Rolling (80) Location -10/Materials Parts ------- > --- POWER (1) -------- (None) > --- PROPULSION (2) --- Wheel > --- UTILITY (2) ------ Small Storage Unit Improved Terrain Scanner > --- WEAPON (2) ------- Particle Gun Light Assault Rifle > --- INVENTORY (8) ---- Light Treads Wheel Wheel Wheel Wheel Heat Sink Mining Laser Peak State ------------ > --- POWER ------------ Ion Engine > --- PROPULSION ------- Wheel Wheel > --- UTILITY ---------- Small Storage Unit Improved Terrain Scanner > --- WEAPON ----------- Light Assault Rifle Light Assault Rifle > --- INVENTORY -------- Light Treads Wheel Wheel Wheel Wheel Compact Wheel Improved Terrain Scanner EM Pulse Gun [Rating: 10] Favorites ----------- Power Ion Engine Engine Ion Engine Propulsion Wheel Leg Aluminum Leg Wheel Wheel Utility Small Storage Unit Device Improved Terrain Scanner Storage Small Storage Unit Weapon Light Assault Rifle Energy Gun EM Pulse Gun Ballistic Gun Light Assault Rifle Special Weapon Mining Laser Build | -11 -10 ------- Run | Jun Mat Slots Evolved . | . . Power . | . . Propulsion . | . . Utility . | . . Weapon . | . . Parts Attached 19 | 13 6 Power 1 | 1 . Engine 1 | 1 . Core . | . . Reactor . | . . Propulsion 8 | 7 1 Treads . | . . Leg 2 | 2 . Wheel 6 | 5 1 Hover . | . . Flight . | . . Utility 3 | 3 . Device 2 | 2 . Storage 1 | 1 . Processor . | . . Hackware . | . . Protection . | . . Artifact . | . . Weapon 7 | 2 5 Energy Gun 2 | . 2 Energy Cannon . | . . Ballistic Gun 3 | 2 1 Ballistic Cannon . | . . Launcher . | . . Special Weapon 2 | . 2 Impact Weapon . | . . Slashing Weapon . | . . Piercing Weapon . | . . Special Melee Weapon . | . . Unidentified Prototypes . | . . Parts Lost 5 | . 5 Power 1 | . 1 Propulsion 2 | . 2 Utility . | . . Weapon 2 | . 2 Highest Loss Streak 3 | . 3 To Critical Strikes . | . . Average Slot Usage (%) 96 | . 96 Engine 13 | . 13 Wheel 26 | . 26 Device 14 | . 14 Storage 14 | . 14 Energy Gun 2 | . 2 Ballistic Gun 21 | . 21 Special Weapon 2 | . 2 Naked Turns . | . . Heaviest Build 14 | 13 14 Greatest Support 26 | 26 20 Greatest Overweight (x) 1 | . 1 Average Overweight (x) . | . . Largest Inventory Capacity 8 | 8 8 Average Capacity 7 | 7 8 Most Carried 8 | 8 8 Average Carried 6 | 5 7 Final Capacity 8 | 8 8 Final Carried 8 | 8 7 Class Distribution -------------------- 89% | Mutant 10% | Scavenger-Mutant Dominant Class ---------------- Mutant | -10/Materials Resources | -11 -10 ----------- Run | Jun Mat Matter Collected 484 | 384 100 Remotely . | . . Salvage Created 533 | 192 341 Parts 46 | 21 25 Haulers Intercepted . | . . Recyclers Shooed 2 | 1 1 Parts Field Recycled . | . . Retrieved Matter . | . . Parts Self-Destructed . | . . Prevented . | . . Kills | -11 -10 ------- Run | Jun Mat Combat Hostiles Destroyed 9 | . 9 Guns 9 | . 9 Classes Destroyed 5 | 2 3 Tunneler 7 | 7 . Recycler 1 | 1 . Watcher 1 | . 1 Swarmer 3 | . 3 Grunt 6 | . 6 Best Kill Streak 5 | 2 5 Combat Bots Only 5 | . 5 Max Kills in Single Turn 1 | 1 1 Gunslinging . | . . Exploded . | . . Melee . | . . Uniques/NPCs Destroyed . | . . Combat | -11 -10 -------- Run | Jun Mat Damage Taken 758 | . 758 Core 251 | . 251 Absorbed by Shields . | . . Core Remaining (%) 100 | 100 . Volleys Fired 84 | 27 57 Largest 2 | 2 2 Hottest 100 | 40 100 Shots Fired 150 | 54 96 Gun 139 | 54 85 Cannon . | . . Launcher . | . . Special 11 | . 11 Kinetic 127 | 54 73 Thermal 14 | . 14 Explosive . | . . Electromagnetic 9 | . 9 Robot Hit Streak 9 | 6 9 Robot Miss Streak 3 | 2 3 Penetration Max . | . . Secondary Targets 3 | . 3 Max Gunslinging Chain 1 | . 1 Shots Hit Robots 96 | 36 60 Core Hits 38 | 15 23 Critical Kills . | . . Critical Parts Destroyed . | . . Critical Strikes . | . . Melee Attacks . | . . Impact . | . . Slashing . | . . Piercing . | . . Sneak Attacks . | . . Combat Hostiles . | . . Follow-up Attacks . | . . Damage Inflicted 912 | 312 600 Guns 912 | 312 600 Cannons . | . . Explosions . | . . Melee . | . . Ramming . | . . Kinetic 755 | 312 443 Thermal 53 | . 53 Explosive . | . . Electromagnetic 104 | . 104 Impact . | . . Slashing . | . . Piercing . | . . Highest Corruption . | . . Average Corruption . | . . Corruption Purged . | . . Corruption Blocked . | . . Overload Shots . | . . Overflow Damage . | . . Projectiles . | . . Explosions . | . . Melee . | . . Knockbacks . | . . Impact . | . . Kinetic . | . . Secondary . | . . Self-Inflicted Damage . | . . Shots . | . . Rammed . | . . Targets Rammed . | . . Kicked . | . . Crushed . | . . Highest Temperature 160 | . 160 Average Temperature 42 | . 42 Received Heat Transfer 387 | . 387 Siege Activations . | . . Robots Corrupted . | . . Combat Hostiles . | . . Parts Fried 1 | . 1 Impact Corruptions . | . . Robots Melted . | . . Combat Hostiles . | . . Parts Melted . | . . Heat Transferred 111 | . 111 Parts Sabotaged . | . . Parts Stolen . | . . Parts Stripped . | . . Power Chain Reactions . | . . Missiles Intercepted . | . . Alert | -11 -10 ------- Run | Jun Mat Peak Influence 153 | 40 153 Initial 26 | . 26 Average 44 | 17 56 Maximum Alert Level . | . . Low Security (%) 100 | 100 100 Level 1 . | . . Level 2 . | . . Level 3 . | . . Level 4 . | . . Level 5 . | . . High Security . | . . Max Security . | . . Squads Dispatched 1 | . 1 Investigation 1 | . 1 Extermination . | . . Reinforcement . | . . Assault . | . . Garrison . | . . Intercept . | . . Searches Triggered . | . . Construction Impeded . | . . Haulers Reinforced . | . . Active Scanning Responses . | . . Cargo Convoy Interrupts . | . . Stealth | -11 -10 --------- Run | Jun Mat Distress Signals . | . . Communications Jammed . | . . Distress Signals . | . . Times Spotted 17 | . 17 Peak Tracking Total 5 | . 5 Tactical Retreats . | . . Traps | -11 -10 ------- Run | Jun Mat Traps Triggered 1 | . 1 Indirectly . | . . Trap Hack Attempts . | . . Triggered . | . . Disarmed . | . . Reprogrammed . | . . Reused . | . . Traps Extracted . | . . Installed . | . . Triggered . | . . Machines | -11 -10 ---------- Run | Jun Mat Machines Disabled 2 | . 2 Max in Single Turn 1 | . 1 Machines Repaired . | . . Machines Sabotaged . | . . Overloaded Fab Kills . | . . Hacking | -11 -10 --------- Run | Jun Mat Machines Accessed 5 | . 5 Terminals 4 | . 4 Fabricators . | . . Repair Stations . | . . Recycling Units 1 | . 1 Scanalyzers . | . . Garrison Access . | . . Total Hacks 11 | . 11 Successful 5 | . 5 Failed 6 | . 6 Catastrophic 2 | . 2 Database Lockouts . | . . Manual 6 | . 6 Terminals 9 | . 9 Fabricators . | . . Repair Stations . | . . Recycling Units 2 | . 2 Scanalyzers . | . . Garrison Access . | . . Terminal Hacks 3 | . 3 Robot Analysis 1 | . 1 Terminal Index 1 | . 1 Recall Investigation 1 | . 1 Fabricator Hacks . | . . Repair Station Hacks . | . . Recycling Unit Hacks . | . . Scanalyzer . | . . Garrison Access Hacks . | . . Unauthorized Hacks 2 | . 2 Terminals 2 | . 2 Botnet 1 | . 1 Operators 1 | . 1 Fabricators . | . . Repair Stations . | . . Recycling Units . | . . Scanalyzers . | . . Garrison Access . | . . Data Cores Recovered . | . . Used . | . . Hacking Detections 5 | . 5 Full Trace Events 1 | . 1 Feedback Events . | . . Feedback Blocked . | . . Robot Schematics Acquired . | . . Robots Built . | . . Authchips . | . . Time . | . . Total Robot Build Rating . | . . Part Schematics Acquired . | . . Parts Built . | . . Authchips . | . . Time . | . . Total Part Build Rating . | . . Parts Repaired . | . . Time . | . . Parts Recycled . | . . Recycled Matter . | . . Retrieved Matter . | . . Retrieved Components . | . . Parts Scanalyzed . | . . Part Schematics Acquired . | . . Parts Damaged . | . . Bothacking | -11 -10 ------------ Run | Jun Mat Used RIF Installer . | . . Robots Hacked . | . . Non-combat . | . . Combat . | . . Robot Hacks Applied . | . . Relay Couplers Released . | . . Fabnet Peak Effective % . | . . Robots Rewired . | . . Allies Hacked . | . . Hacks Repelled . | . . Allies | -11 -10 -------- Run | Jun Mat Total Allies . | . . Largest Group . | . . Highest-Rated Group . | . . Highest-Rated Ally . | . . Total Orders . | . . Ally Attacks . | . . Total Damage . | . . Kills . | . . Allies Corrupted . | . . Allies Melted . | . . Intel | -11 -10 ------- Run | Jun Mat Robot Analysis Total 1 | . 1 Derelict Logs Recovered . | . . Drone Launches . | . . Drone Recoveries . | . . Exploration | -11 -10 ------------- Run | Jun Mat Turns Passed 754 | 233 521 Spaces Moved 489 | 137 352 Core 1 | 1 . Treads . | . . Legs 30 | 30 . Wheels 458 | 106 352 Hover . | . . Flight . | . . Fastest Speed 50 | 50 80 Average Speed 82 | 89 80 Slowest Speed 120 | 120 95 Overloaded Moves . | . . Propulsion Burnouts . | . . Robots Hopped . | . . Cave-ins Triggered . | . . Exploration Rate (%) 28 | 5 51 Regions Visited 1 Branch Regions . Pre-discovered Areas . | . . Known Exits Taken . | . . Unknown Exits Taken 1 | 1 . Scrap Searched . | . . Spaces Dug 2 | . 2 Terrain Destroyed 2 | . 2 Melee . | . . Projectile 2 | . 2 AOE . | . . Terrain Rammed . | . . Walls Destroyed . | . . Machines Disabled . | . . Actions | -11 -10 --------- Run | Jun Mat Total 688 | 202 486 Wait 75 | 8 67 Move 488 | 136 352 Hop . | . . Pick Up 13 | 11 2 Fast Attach 9 | 8 1 Attach 4 | 1 3 Detach 3 | 2 1 Swap 6 | 4 2 Drop 6 | 5 1 Fire 84 | 27 57 Melee . | . . Ram . | . . Kick . | . . Crush . | . . Escape Stasis . | . . Rewire . | . . Trap . | . . Miscellaneous . | . . Route ------- -11/Junkyard -10/Materials (discovered 1 exit: [*Mat]) History --------- Turn | Location | Event 8 | -11/Junkyard | Discovered new exit (range 15) 234 | -11/Junkyard | Entered Materials 305 | -10/Materials | Build established: Mutant 410 | -10/Materials | Discovered new exit (range 15) 518 | -10/Materials | Core integrity fell below 50% 736 | -10/Materials | Core integrity fell below 20% 755 | -10/Materials | Destroyed by S-10 Pest with Light Assault Rifle Last Messages --------------- 00736_ Wheel destroyed. 00738_ Lgt. Nuclear Core fried. 00738_ G-47 Trooper destroyed. 00738_ K-01 Serf collects debris. 00739_ Acquired 27 matter. 00740_ U-05 Engineer builds a Wall. 00740_ G-34 Mercenary destroyed. 00740_ Switching to secondary target: G-34 Mercenary. 00741_ Acquired 1 matter. 00741_ EM Pulse Gun destroyed. 00743_ K-01 Serf collects debris. 00744_ Acquired 1 matter. 00746_ R-06 Scavenger collects Flight Unit. 00746_ Acquired Particle Gun. 00747_ K-01 Serf collects debris. 00748_ R-06 Scavenger collects Lgt. Ion Engine. 00749_ R-06 Scavenger collects Flight Unit. 00750_ K-01 Serf collects debris. 00753_ R-06 Scavenger collects Flight Unit. 00753_ K-01 Serf collects debris. Map ----- +----------------------------------------------------+ | | | | | | | | | | | | | | | | | | | ????????????????????????#########????????????????? | | ????????????????????????# ??#########?????? | | ?????????????#??????????# ?#!!==!!#?????#? | | ?????????????#??????????# !?#!!==!!#??##### | | ?????????????????????#??? ## ##?# # | | ?????????#????#??????#########+##+## ###### # | | ?????????????????????# + " ### =* = | | ?????????????????????# # T" ### [ "" | | ?????????????????????# = # ### """ | | ??????????????#??????# # # """ | | ??????????????????#?## # """" + | | ????????? ????????#??######### """" # """ | | ????????????????????########?# """" # / """ | | ?????????????#==!?? # #?# # """ | | ?????????????#=!! =# = #?# # | | ??????????? ??=! s/s =!% #?# ################ | | ??????????????? ??? #s =%@ #?# #???#??????#???? | | ????????????????????# k %=### #??????##??##### | | ????????????????????# rg*=#?# #???##??##?# # | | ?????????????#?????####/###### ############ < # | | ???????????????? ? % # | | ?????????????????? # | | ????????????????? """ """ % # | | ??????????????????## """ """ ############ # | | ??????????????????## """ """ #???????#??# % # | | ???????????????????# #????##????#% # | | ???????????????????# #???#?????## # | | ???????????????????# """ #?#?#??#??## # | | ???????????????????# """ #??????#?#?# # | | ???????????????????# " " """ ???????#???# # | | ???????????????????# "T" ?? ???????????# # | | ???????????????????#[ ?"?? ???? ?#?????????# # | | ???????????????????###????????# ?????????#?# # | | ????????????????????????#?????# ############ # | | ??????????????????????????????# # | | ??????????????????????????????# # | | ???????????????????????????o???? # | | ?????????????????????????????????############# # | | ????????????????????????? ???????????????????# # | | ????????????????????????? ??????#?########## # | | ????????????????????????? #???????# T # # | +----------------------------------------------------+ Best States ------------- Heat Dissipation 25 Energy Generation 10 Energy Capacity 250 Matter Stores 300 Matter Capacity 300 Sight Range 16 Terrain Scan Range 16 Terrain Scan Density 10 Evasion (%) 50 Item Schematics ----------------- None Robot Schematics ------------------ None Fabricated ------------ Nothing Alien Tech Used ----------------- None Achievements -------------- None Challenges ------------ None Game ------ Seed FlyingUltimateChronowheel Manual? 0 Play Time 00:07:35 Cumulative 527.0 hours Start 2023.03.04 @ 22:54:39 End 2023.03.04 @ 23:01:58 Sessions 1 Manual Loads 0 Difficulty Rogue Special Mode None Game No. 380 Rogue 380 Adventurer 0 Explorer 0 Win Type - Total 1 Types 1/0/0/0/0/0/0/0/0 Lore% 69 Gallery% 77 Achievement% 58 Wizard Run 0 Options --------- ASCII 0 Keyboard 0 Movement Mouse Keybinds 0 Fullscreen 1 Font 16/SmallcapsGlow Map View 75x55 Tactical HUD 1 Map Filters NONE Filters NONE Steam 1 RUN: f60e2798-596e-4cff-8ca7-1e83f4202b54